Workbook

Sheet Sheet1
A2: 陆丰市驻镇帮镇扶村资金安排表(第二批)
A4: 编制单位：陆丰市乡村振兴局 | L4: 单位：万元
A5: 单位名称 | B5: 合计 | C5: 安排帮扶资金 | D5: 驻镇工作经费 | E5: 其中
E6: 省级资金 | H6: 深圳市对口资金 | K6: 汕尾市配套资金
E7: 小计 | F7: 帮扶资金 | G7: 驻镇工作经费 | H7: 小计 | I7: 帮扶资金 | J7: 驻镇工作经费 | K7: 小计 | L7: 帮扶资金 | M7: 驻镇工作经费
A8: 全市合计 | B8: =C8+D8 -> 34700 | C8: =F8+I8+L8 -> 34380.2 | D8: =G8+J8+M8 -> 319.8 | E8: =E30+E35 -> 18700 | F8: 18530 | G8: 170 | H8: 10200 | I8: 10108.2 | J8: 91.8 | K8: 5800 | L8: 5742 | M8: 58
A9: 上英镇 | B9: =E9+H9+K9 -> 1740 | C9: =F9+I9+L9 -> 1722.6 | D9: =G9+J9+M9 -> 17.4 | E9: 1100 | F9: =E9-G9 -> 1090 | G9: 10 | H9: 440 | I9: =H9-J9 -> 434.6 | J9: 5.4 | K9: 200 | L9: 198 | M9: 2
A10: 八万镇 | B10: =E10+H10+K10 -> 1740 | C10: 1722.6 | D10: 17.4 | E10: 1100 | F10: =E10-G10 -> 1090 | G10: 10 | H10: 440 | I10: =H10-J10 -> 434.6 | J10: 5.4 | K10: 200 | L10: 198 | M10: 2
A11: 内湖镇 | B11: 1740 | C11: 1722.6 | D11: 17.4 | E11: 1100 | F11: 1090 | G11: 10 | H11: 440 | I11: 434.6 | J11: 5.4 | K11: 200 | L11: 198 | M11: 2
A12: 南塘镇 | B12: 1740 | C12: 1722.6 | D12: 17.4 | E12: 1100 | F12: 1090 | G12: 10 | H12: 440 | I12: 434.6 | J12: 5.4 | K12: 200 | L12: 198 | M12: 2
A13: 博美镇 | B13: 1740 | C13: 1722.6 | D13: 17.4 | E13: 1100 | F13: 1090 | G13: 10 | H13: 440 | I13: 434.6 | J13: 5.4 | K13: 200 | L13: 198 | M13: 2
A14: 大安镇 | B14: 1740 | C14: 1722.6 | D14: 17.4 | E14: 1100 | F14: 1090 | G14: 10 | H14: 440 | I14: 434.6 | J14: 5.4 | K14: 200 | L14: 198 | M14: 2
A15: 桥冲镇 | B15: 1740 | C15: 1722.6 | D15: 17.4 | E15: 1100 | F15: 1090 | G15: 10 | H15: 440 | I15: 434.6 | J15: 5.4 | K15: 200 | L15: 198 | M15: 2
A16: 河东镇 | B16: 1740 | C16: 1722.6 | D16: 17.4 | E16: 1100 | F16: 1090 | G16: 10 | H16: 440 | I16: 434.6 | J16: 5.4 | K16: 200 | L16: 198 | M16: 2
A17: 湖东镇 | B17: 1740 | C17: 1722.6 | D17: 17.4 | E17: 1100 | F17: 1090 | G17: 10 | H17: 440 | I17: 434.6 | J17: 5.4 | K17: 200 | L17: 198 | M17: 2
A18: 潭西镇 | B18: 1740 | C18: 1722.6 | D18: 17.4 | E18: 1100 | F18: 1090 | G18: 10 | H18: 440 | I18: 434.6 | J18: 5.4 | K18: 200 | L18: 198 | M18: 2
A19: 甲东镇 | B19: 1740 | C19: 1722.6 | D19: 17.4 | E19: 1100 | F19: 1090 | G19: 10 | H19: 440 | I19: 434.6 | J19: 5.4 | K19: 200 | L19: 198 | M19: 2
A20: 甲西镇 | B20: 1740 | C20: 1722.6 | D20: 17.4 | E20: 1100 | F20: 1090 | G20: 10 | H20: 440 | I20: 434.6 | J20: 5.4 | K20: 200 | L20: 198 | M20: 2
A21: 西南镇 | B21: 1740 | C21: 1722.6 | D21: 17.4 | E21: 1100 | F21: 1090 | G21: 10 | H21: 440 | I21: 434.6 | J21: 5.4 | K21: 200 | L21: 198 | M21: 2
A22: 甲子镇 | B22: 1740 | C22: 1722.6 | D22: 17.4 | E22: 1100 | F22: 1090 | G22: 10 | H22: 440 | I22: 434.6 | J22: 5.4 | K22: 200 | L22: 198 | M22: 2
A23: 碣石镇 | B23: 1740 | C23: 1722.6 | D23: 17.4 | E23: 1100 | F23: 1090 | G23: 10 | H23: 440 | I23: 434.6 | J23: 5.4 | K23: 200 | L23: 198 | M23: 2
A24: 金厢镇 | B24: 1740 | C24: 1722.6 | D24: 17.4 | E24: 1100 | F24: 1090 | G24: 10 | H24: 440 | I24: 434.6 | J24: 5.4 | K24: 200 | L24: 198 | M24: 2
A25: 陂洋镇 | B25: 1740 | C25: 1722.6 | D25: 17.4 | E25: 1100 | F25: 1090 | G25: 10 | H25: 440 | I25: 434.6 | J25: 5.4 | K25: 200 | L25: 198 | M25: 2
A26: 东海镇 | B26: 600 | C26: 594 | D26: 6 | K26: 600 | L26: 594 | M26: 6
A27: 城东镇 | B27: 600 | C27: 594 | D27: 6 | K27: 600 | L27: 594 | M27: 6
A28: 河西镇 | B28: 600 | C28: 594 | D28: 6 | K28: 600 | L28: 594 | M28: 6
A29: 星都区 | B29: 600 | C29: 594 | D29: 6 | K29: 600 | L29: 594 | M29: 6
A30: 镇（场区）小计 | B30: =SUM(B9:B29) -> 31980 | C30: 31660.2 | D30: 319.8 | E30: 18700 | F30: 18530 | G30: 170 | H30: 7480 | I30: 7388.2 | J30: 91.8 | K30: 5800 | L30: 5742 | M30: 58
A31: 市农业农村局（产业园区建设) | B31: =H31 -> 1500 | C31: 1500 | H31: 1500 | I31: 1500
A32: 市农业农村局（品牌创建) | B32: 200 | C32: 200 | H32: 200 | I32: 200
A33: 市农业农村局（产业发展贷款贴息) | B33: =E33+H33+K33 -> 510 | C33: 510 | H33: 510 | I33: 510
A34: 市农业农村局（防止返贫保障项目) | B34: =E34+H34+K34 -> 510 | C34: 510 | H34: 510 | I34: 510
A35: 市统筹小计 | B35: =SUM(B31:B34) -> 2720 | C35: =SUM(C31:C34) -> 2720 | H35: =SUM(H31:H34) -> 2720 | I35: =SUM(I31:I34) -> 2720
